[Event "*** Titled Tuesday Blitz"]
[Site "Chess.com"]
[Date "2020.04.14"]
[Round "6"]
[White "blazingbanana"]
[Black "MisiekZielony"]
[Result "0-1"]
[WhiteElo "2388"]
[BlackElo "2209"]
[TimeControl "180+1"]
[EndTime "11:03:32 PDT"]
[Termination "MisiekZielony won by checkmate"]

1. d4 {[%clk 0:03:00.6]} 1... d5 {[%clk 0:02:58.4]} 2. c4 {[%clk 0:03:00]} 2...
c6 {[%clk 0:02:58.4]} 3. Nc3 {[%clk 0:02:59]} 3... Nf6 {[%clk 0:02:58.2]} 4. e3
{[%clk 0:02:59]} 4... g6 {[%clk 0:02:57.8]} 5. Nf3 {[%clk 0:02:58.7]} 5... Bg7
{[%clk 0:02:57.9]} 6. Bd3 {[%clk 0:02:58.3]} 6... O-O {[%clk 0:02:57.7]} 7. O-O
{[%clk 0:02:58.6]} 7... Bg4 {[%clk 0:02:55.1]} 8. h3 {[%clk 0:02:57.5]} 8...
Bxf3 {[%clk 0:02:55.1]} 9. Qxf3 {[%clk 0:02:56.7]} 9... e6 {[%clk 0:02:55.3]}
10. b3 {[%clk 0:02:55.2]} 10... Nbd7 {[%clk 0:02:55]} 11. Bb2 {[%clk 0:02:54.7]}
11... Re8 {[%clk 0:02:54.3]} 12. Rfd1 {[%clk 0:02:48.6]} 12... Qe7 {[%clk
0:02:53.4]} 13. e4 {[%clk 0:02:42.8]} 13... dxe4 {[%clk 0:02:52.3]} 14. Nxe4
{[%clk 0:02:42.8]} 14... Nxe4 {[%clk 0:02:51.9]} 15. Bxe4 {[%clk 0:02:41.6]}
15... f5 {[%clk 0:02:43.6]} 16. Bc2 {[%clk 0:02:37.8]} 16... e5 {[%clk
0:02:43.2]} 17. Re1 {[%clk 0:02:32.1]} 17... e4 {[%clk 0:02:41.9]} 18. Qe3
{[%clk 0:02:30.1]} 18... Qf7 {[%clk 0:02:33.4]} 19. Qf4 {[%clk 0:02:21.5]} 19...
Nf6 {[%clk 0:02:17.7]} 20. Rad1 {[%clk 0:02:19.1]} 20... Rad8 {[%clk 0:02:15.8]}
21. Ba1 {[%clk 0:02:09.8]} 21... Rd7 {[%clk 0:02:01.6]} 22. f3 {[%clk
0:02:04.1]} 22... Nh5 {[%clk 0:01:51.8]} 23. Qe3 {[%clk 0:01:48.5]} 23... f4
{[%clk 0:01:50.6]} 24. Qe2 {[%clk 0:01:42]} 24... Ng3 {[%clk 0:01:47.2]} 25. Qd2
{[%clk 0:01:35.1]} 25... e3 {[%clk 0:01:47.2]} 26. Qa5 {[%clk 0:01:33.9]} 26...
b6 {[%clk 0:01:11.2]} 27. Qg5 {[%clk 0:01:27.3]} 27... Red8 {[%clk 0:01:03.4]}
28. d5 {[%clk 0:01:18.2]} 28... Bxa1 {[%clk 0:00:45.2]} 29. Rxa1 {[%clk
0:01:07.6]} 29... cxd5 {[%clk 0:00:44.8]} 30. Rad1 {[%clk 0:01:02.7]} 30... d4
{[%clk 0:00:39.8]} 31. b4 {[%clk 0:00:58.3]} 31... Kg7 {[%clk 0:00:39.6]} 32.
Bb3 {[%clk 0:00:54.1]} 32... Qf6 {[%clk 0:00:39.3]} 33. Qg4 {[%clk 0:00:46.7]}
33... h5 {[%clk 0:00:36.9]} 34. Qxd7+ {[%clk 0:00:43.8]} 34... Rxd7 {[%clk
0:00:36.7]} 35. c5 {[%clk 0:00:44.7]} 35... bxc5 {[%clk 0:00:36.6]} 36. bxc5
{[%clk 0:00:45.6]} 36... d3 {[%clk 0:00:36.7]} 37. c6 {[%clk 0:00:39.8]} 37...
Qxc6 {[%clk 0:00:34.9]} 38. Rc1 {[%clk 0:00:39.6]} 38... Ne2+ {[%clk 0:00:32.6]}
39. Rxe2 {[%clk 0:00:36.8]} 39... dxe2 {[%clk 0:00:32.7]} 40. Rxc6 {[%clk
0:00:34.7]} 40... e1=Q+ {[%clk 0:00:32.1]} 41. Kh2 {[%clk 0:00:35.6]} 41... Qg3+
{[%clk 0:00:31.8]} 42. Kg1 {[%clk 0:00:34.9]} 42... Rd2 {[%clk 0:00:31.3]} 43.
Rc7+ {[%clk 0:00:33.4]} 43... Kh6 {[%clk 0:00:31]} 44. Bg8 {[%clk 0:00:29.7]}
44... Qxg2# {[%clk 0:00:30.4]} 0-1

[Event "*** Titled Tuesday Blitz"]
[Site "Chess.com"]
[Date "2020.04.14"]
[Round "6"]
[White "flomarechot"]
[Black "Boudicca64"]
[Result "1-0"]
[WhiteElo "2169"]
[BlackElo "1996"]
[TimeControl "180+1"]
[EndTime "11:03:32 PDT"]
[Termination "flomarechot won on time"]

1. d4 {[%clk 0:03:00.9]} 1... d5 {[%clk 0:02:56.6]} 2. c4 {[%clk 0:03:00.2]}
2... e6 {[%clk 0:02:54]} 3. Nc3 {[%clk 0:02:59.9]} 3... Nf6 {[%clk 0:02:52.3]}
4. cxd5 {[%clk 0:02:58.9]} 4... exd5 {[%clk 0:02:50.6]} 5. Bg5 {[%clk
0:02:59.1]} 5... Be7 {[%clk 0:02:47.8]} 6. Qc2 {[%clk 0:02:51.6]} 6... O-O
{[%clk 0:02:44.2]} 7. e3 {[%clk 0:02:46]} 7... b6 {[%clk 0:02:42.8]} 8. Bd3
{[%clk 0:02:37.6]} 8... h6 {[%clk 0:02:40.4]} 9. Bh4 {[%clk 0:02:29.3]} 9... Bb7
{[%clk 0:02:38.8]} 10. Nf3 {[%clk 0:01:08.2]} 10... Nbd7 {[%clk 0:02:36.8]} 11.
Bg3 {[%clk 0:01:06.3]} 11... c5 {[%clk 0:02:33.8]} 12. O-O {[%clk 0:01:05.3]}
12... Rc8 {[%clk 0:02:31.7]} 13. b3 {[%clk 0:01:02.1]} 13... cxd4 {[%clk
0:02:27.2]} 14. Nxd4 {[%clk 0:00:57]} 14... Bb4 {[%clk 0:02:24.9]} 15. Rac1
{[%clk 0:00:19.8]} 15... Rxc3 {[%clk 0:02:12.7]} 16. Qe2 {[%clk 0:00:19.8]}
16... Qc8 {[%clk 0:01:52.1]} 17. Rxc3 {[%clk 0:00:17.2]} 17... Qxc3 {[%clk
0:01:50.3]} 18. Nf5 {[%clk 0:00:14.2]} 18... Ne5 {[%clk 0:01:39]} 19. Bb1 {[%clk
0:00:12.2]} 19... Rc8 {[%clk 0:01:22.3]} 20. Bf4 {[%clk 0:00:09.3]} 20... Ng6
{[%clk 0:00:41.6]} 21. Bxh6 {[%clk 0:00:06.7]} 21... gxh6 {[%clk 0:00:36.5]} 22.
Nxh6+ {[%clk 0:00:07.1]} 22... Kg7 {[%clk 0:00:35.2]} 23. Nf5+ {[%clk
0:00:06.1]} 23... Kh7 {[%clk 0:00:32.7]} 24. h4 {[%clk 0:00:05.7]} 24... d4
{[%clk 0:00:18.7]} 25. h5 {[%clk 0:00:04.4]} 25... Ne5 {[%clk 0:00:12.9]} 26.
Nxd4+ {[%clk 0:00:03.9]} 26... Kh8 {[%clk 0:00:01.4]} 27. h6 {[%clk 0:00:03.2]}
1-0

[Event "*** Titled Tuesday Blitz"]
[Site "Chess.com"]
[Date "2020.04.14"]
[Round "6"]
[White "ajian"]
[Black "vladimirdamjanovic"]
[Result "0-1"]
[WhiteElo "2378"]
[BlackElo "2542"]
[TimeControl "180+1"]
[EndTime "11:03:34 PDT"]
[Termination "vladimirdamjanovic won by resignation"]

1. d4 {[%clk 0:03:00.9]} 1... Nf6 {[%clk 0:02:47.4]} 2. c4 {[%clk 0:03:00.5]}
2... c5 {[%clk 0:02:39.9]} 3. d5 {[%clk 0:03:00.3]} 3... b5 {[%clk 0:02:37.7]}
4. cxb5 {[%clk 0:03:01.2]} 4... a6 {[%clk 0:02:36.7]} 5. bxa6 {[%clk 0:03:02.1]}
5... g6 {[%clk 0:02:08.9]} 6. Nc3 {[%clk 0:03:01.3]} 6... Bg7 {[%clk 0:02:08.4]}
7. g3 {[%clk 0:03:01.3]} 7... d6 {[%clk 0:02:07.4]} 8. Nf3 {[%clk 0:03:00]} 8...
O-O {[%clk 0:02:05.8]} 9. Bg2 {[%clk 0:03:00]} 9... Nbd7 {[%clk 0:02:06.7]} 10.
O-O {[%clk 0:02:57.7]} 10... Nb6 {[%clk 0:02:07.6]} 11. Nh4 {[%clk 0:02:47.5]}
11... Bxa6 {[%clk 0:02:06.5]} 12. Rb1 {[%clk 0:02:43]} 12... Nfd7 {[%clk
0:02:05.2]} 13. Qc2 {[%clk 0:02:37.4]} 13... c4 {[%clk 0:01:45.2]} 14. Rd1
{[%clk 0:02:18.8]} 14... Nc5 {[%clk 0:01:28.4]} 15. Nf3 {[%clk 0:02:12.2]} 15...
Bb7 {[%clk 0:01:20.9]} 16. Nd4 {[%clk 0:02:05.3]} 16... Nba4 {[%clk 0:01:13.2]}
17. Nc6 {[%clk 0:01:16.4]} 17... Bxc6 {[%clk 0:01:07.6]} 18. dxc6 {[%clk
0:01:17.3]} 18... Nxc3 {[%clk 0:00:57.1]} 19. bxc3 {[%clk 0:01:16]} 19... Qa5
{[%clk 0:00:38.3]} 20. Be3 {[%clk 0:00:43.9]} 20... Na4 {[%clk 0:00:17.6]} 21.
Rb4 {[%clk 0:00:05.4]} 21... Nxc3 {[%clk 0:00:17]} 22. Rxc4 {[%clk 0:00:04.2]}
22... Nxd1 {[%clk 0:00:17.1]} 23. Qxd1 {[%clk 0:00:04.4]} 23... Qxa2 {[%clk
0:00:17.8]} 24. Rc1 {[%clk 0:00:03.4]} 24... Rfc8 {[%clk 0:00:16.8]} 25. c7
{[%clk 0:00:02.8]} 25... Ra7 {[%clk 0:00:12.3]} 26. Bxa7 {[%clk 0:00:02.2]}
26... Qxa7 {[%clk 0:00:13.2]} 27. Qc2 {[%clk 0:00:02.2]} 27... Bd4 {[%clk
0:00:13.2]} 28. e3 {[%clk 0:00:02.1]} 28... Bc5 {[%clk 0:00:13.6]} 29. Qb2
{[%clk 0:00:01.6]} 29... Qxc7 {[%clk 0:00:13.1]} 30. Qc2 {[%clk 0:00:01.4]}
30... Qa7 {[%clk 0:00:09.7]} 31. Qb1 {[%clk 0:00:02.2]} 31... Rb8 {[%clk
0:00:09.9]} 32. h3 {[%clk 0:00:03]} 32... Rxb1 {[%clk 0:00:09.8]} 33. Rxb1
{[%clk 0:00:03.9]} 33... Kg7 {[%clk 0:00:10.3]} 0-1

[Event "*** Titled Tuesday Blitz"]
[Site "Chess.com"]
[Date "2020.04.14"]
[Round "6"]
[White "Shivagami"]
[Black "mortngabriel"]
[Result "0-1"]
[WhiteElo "2143"]
[BlackElo "2385"]
[TimeControl "180+1"]
[EndTime "11:03:34 PDT"]
[Termination "mortngabriel won on time"]

1. d4 {[%clk 0:03:00.9]} 1... Nf6 {[%clk 0:02:59.7]} 2. c4 {[%clk 0:02:58.1]}
2... e6 {[%clk 0:02:59.5]} 3. Nc3 {[%clk 0:02:57.1]} 3... Bb4 {[%clk 0:03:00]}
4. f3 {[%clk 0:02:57.6]} 4... d5 {[%clk 0:02:54.2]} 5. cxd5 {[%clk 0:02:54.1]}
5... Nxd5 {[%clk 0:02:50.2]} 6. Qc2 {[%clk 0:02:49.1]} 6... Qh4+ {[%clk
0:02:45.9]} 7. g3 {[%clk 0:02:38]} 7... Qxd4 {[%clk 0:02:45.2]} 8. Bd2 {[%clk
0:02:34.2]} 8... Ne3 {[%clk 0:02:34.7]} 9. Bxe3 {[%clk 0:02:22]} 9... Qxe3
{[%clk 0:02:33.3]} 10. Rd1 {[%clk 0:02:21.7]} 10... O-O {[%clk 0:02:27.5]} 11.
Rd3 {[%clk 0:02:16.3]} 11... Qb6 {[%clk 0:02:12]} 12. Nh3 {[%clk 0:02:10.1]}
12... Nc6 {[%clk 0:02:04.8]} 13. Ng5 {[%clk 0:02:08.8]} 13... h6 {[%clk
0:01:59]} 14. Ne4 {[%clk 0:01:54]} 14... e5 {[%clk 0:01:56]} 15. a3 {[%clk
0:01:48.8]} 15... Bxc3+ {[%clk 0:01:54.8]} 16. Nxc3 {[%clk 0:01:48.7]} 16... Nd4
{[%clk 0:01:48.1]} 17. Qb1 {[%clk 0:01:41.5]} 17... Bf5 {[%clk 0:01:39.7]} 18.
e4 {[%clk 0:01:39.9]} 18... Be6 {[%clk 0:01:39.3]} 19. Bg2 {[%clk 0:01:34]}
19... Rad8 {[%clk 0:01:37.3]} 20. b4 {[%clk 0:01:18.7]} 20... c6 {[%clk
0:01:33.9]} 21. Na4 {[%clk 0:01:16]} 21... Qb5 {[%clk 0:01:30.6]} 22. Nb2 {[%clk
0:01:07.1]} 22... a5 {[%clk 0:01:24.2]} 23. O-O {[%clk 0:00:57.4]} 23... axb4
{[%clk 0:01:19.7]} 24. axb4 {[%clk 0:00:49.8]} 24... Qxb4 {[%clk 0:01:19.9]} 25.
f4 {[%clk 0:00:22]} 25... f6 {[%clk 0:01:18.5]} 26. f5 {[%clk 0:00:21.6]} 26...
Bb3 {[%clk 0:01:05.5]} 27. Rf2 {[%clk 0:00:15.8]} 27... b5 {[%clk 0:00:42.9]}
28. Nd1 {[%clk 0:00:12]} 28... c5 {[%clk 0:00:39.5]} 29. Rb2 {[%clk 0:00:07.7]}
29... Qe1+ {[%clk 0:00:32.3]} 30. Bf1 {[%clk 0:00:05.7]} 30... Bxd1 {[%clk
0:00:23.1]} 31. Rxd1 {[%clk 0:00:04.1]} 31... Nf3+ {[%clk 0:00:21.6]} 32. Kg2
{[%clk 0:00:01.8]} 32... Rxd1 {[%clk 0:00:21.2]} 0-1

[Event "*** Titled Tuesday Blitz"]
[Site "Chess.com"]
[Date "2020.04.14"]
[Round "6"]
[White "benko_008"]
[Black "Rish_97"]
[Result "1-0"]
[WhiteElo "2473"]
[BlackElo "2596"]
[TimeControl "180+1"]
[EndTime "11:03:35 PDT"]
[Termination "benko_008 won by resignation"]

1. Nf3 {[%clk 0:03:00.9]} 1... d5 {[%clk 0:02:59]} 2. d4 {[%clk 0:03:00.4]} 2...
Nf6 {[%clk 0:02:58.5]} 3. c4 {[%clk 0:03:00.2]} 3... c6 {[%clk 0:02:58.8]} 4.
Nbd2 {[%clk 0:02:55.3]} 4... Bf5 {[%clk 0:02:46.3]} 5. Nh4 {[%clk 0:02:53.6]}
5... Be4 {[%clk 0:02:46.3]} 6. e3 {[%clk 0:02:49.9]} 6... e6 {[%clk 0:02:36.9]}
7. Be2 {[%clk 0:02:42.3]} 7... h6 {[%clk 0:02:37.1]} 8. O-O {[%clk 0:02:41.5]}
8... Bh7 {[%clk 0:02:36.5]} 9. Nhf3 {[%clk 0:02:37.3]} 9... Nbd7 {[%clk
0:02:35.1]} 10. b3 {[%clk 0:02:37.3]} 10... Bd6 {[%clk 0:02:35.3]} 11. Bb2
{[%clk 0:02:37.4]} 11... O-O {[%clk 0:02:35.6]} 12. Rc1 {[%clk 0:02:36.1]} 12...
Qe7 {[%clk 0:02:35.7]} 13. Re1 {[%clk 0:02:34.8]} 13... Rfd8 {[%clk 0:02:34.8]}
14. Bf1 {[%clk 0:02:27.1]} 14... Ba3 {[%clk 0:02:34.6]} 15. Bxa3 {[%clk
0:02:21]} 15... Qxa3 {[%clk 0:02:35.5]} 16. Ra1 {[%clk 0:02:20.3]} 16... a5
{[%clk 0:02:31.9]} 17. Qc1 {[%clk 0:02:19.9]} 17... Qe7 {[%clk 0:02:28.2]} 18.
a3 {[%clk 0:02:19.3]} 18... Rac8 {[%clk 0:02:25]} 19. Qb2 {[%clk 0:02:17.8]}
19... c5 {[%clk 0:02:19.6]} 20. Rac1 {[%clk 0:02:15.1]} 20... b6 {[%clk
0:02:19.3]} 21. cxd5 {[%clk 0:02:13.4]} 21... Nxd5 {[%clk 0:02:19.9]} 22. Bb5
{[%clk 0:02:09.1]} 22... cxd4 {[%clk 0:02:12.7]} 23. Nxd4 {[%clk 0:02:07.1]}
23... Nc5 {[%clk 0:02:12.8]} 24. b4 {[%clk 0:01:56.1]} 24... axb4 {[%clk
0:02:11.4]} 25. axb4 {[%clk 0:01:57]} 25... e5 {[%clk 0:01:40.7]} 26. bxc5
{[%clk 0:01:51.6]} 26... exd4 {[%clk 0:01:36.9]} 27. exd4 {[%clk 0:01:51]} 27...
Qf6 {[%clk 0:01:37.2]} 28. c6 {[%clk 0:01:41.1]} 28... Nc7 {[%clk 0:01:36.6]}
29. Nf3 {[%clk 0:01:37.5]} 29... Ne6 {[%clk 0:01:22.7]} 30. Red1 {[%clk
0:01:24.3]} 30... Nf4 {[%clk 0:01:21]} 31. Ne5 {[%clk 0:01:18]} 31... Be4 {[%clk
0:01:14.1]} 32. f3 {[%clk 0:01:12]} 32... Bd5 {[%clk 0:01:14.6]} 33. c7 {[%clk
0:01:11.5]} 33... Rd6 {[%clk 0:01:08.4]} 34. Ba6 {[%clk 0:01:10.1]} 34... Be6
{[%clk 0:00:47.2]} 35. Bxc8 {[%clk 0:01:07.9]} 35... Bxc8 {[%clk 0:00:48.1]} 36.
Qb5 {[%clk 0:00:58.4]} 36... Qg5 {[%clk 0:00:40]} 37. Rc2 {[%clk 0:00:54.7]}
37... Kh7 {[%clk 0:00:34.2]} 38. Kh1 {[%clk 0:00:50.4]} 38... f6 {[%clk
0:00:28.7]} 39. Nf7 {[%clk 0:00:49]} 39... Qxb5 {[%clk 0:00:27.6]} 40. Nxd6
{[%clk 0:00:47.8]} 40... Qd7 {[%clk 0:00:27.7]} 41. Nxc8 {[%clk 0:00:46.9]}
41... Qxc8 {[%clk 0:00:27.7]} 42. d5 {[%clk 0:00:47]} 42... Ng6 {[%clk
0:00:22.3]} 43. Rb1 {[%clk 0:00:42.3]} 43... Ne5 {[%clk 0:00:21.7]} 44. Rxb6
{[%clk 0:00:41.4]} 44... Nd7 {[%clk 0:00:21.3]} 45. Rd6 {[%clk 0:00:39.5]} 45...
Qb7 {[%clk 0:00:19.7]} 46. c8=Q {[%clk 0:00:34.6]} 1-0

[Event "*** Titled Tuesday Blitz"]
[Site "Chess.com"]
[Date "2020.04.14"]
[Round "6"]
[White "Neimar24"]
[Black "Darhild"]
[Result "1-0"]
[WhiteElo "2557"]
[BlackElo "2699"]
[TimeControl "180+1"]
[EndTime "11:03:36 PDT"]
[Termination "Neimar24 won by resignation"]

1. d4 {[%clk 0:03:00.9]} 1... Nf6 {[%clk 0:02:57.9]} 2. c4 {[%clk 0:02:58.2]}
2... g6 {[%clk 0:02:58.2]} 3. g3 {[%clk 0:02:57.5]} 3... Bg7 {[%clk 0:02:56.6]}
4. Bg2 {[%clk 0:02:58]} 4... d5 {[%clk 0:02:57.2]} 5. cxd5 {[%clk 0:02:57.4]}
5... Nxd5 {[%clk 0:02:58.1]} 6. Nf3 {[%clk 0:02:57.7]} 6... O-O {[%clk 0:02:57]}
7. O-O {[%clk 0:02:57.4]} 7... Nb6 {[%clk 0:02:56.5]} 8. Nc3 {[%clk 0:02:56.6]}
8... Nc6 {[%clk 0:02:57]} 9. e3 {[%clk 0:02:56]} 9... Re8 {[%clk 0:02:56.4]} 10.
h3 {[%clk 0:02:55.6]} 10... Rb8 {[%clk 0:02:41.7]} 11. b3 {[%clk 0:02:48.7]}
11... e5 {[%clk 0:02:39]} 12. dxe5 {[%clk 0:02:32.2]} 12... Qxd1 {[%clk
0:02:24.8]} 13. Nxd1 {[%clk 0:02:29.2]} 13... Nxe5 {[%clk 0:02:23.7]} 14. Nxe5
{[%clk 0:02:28.7]} 14... Bxe5 {[%clk 0:02:24.6]} 15. Bb2 {[%clk 0:02:29]} 15...
Bxb2 {[%clk 0:02:12.6]} 16. Nxb2 {[%clk 0:02:27.6]} 16... Bf5 {[%clk 0:02:13.5]}
17. Rac1 {[%clk 0:02:26.6]} 17... c6 {[%clk 0:02:12.1]} 18. Rfd1 {[%clk
0:02:22.4]} 18... Rbd8 {[%clk 0:02:10.9]} 19. g4 {[%clk 0:02:17.9]} 19... Be6
{[%clk 0:02:06.6]} 20. Nd3 {[%clk 0:02:15.2]} 20... Bd5 {[%clk 0:01:51.5]} 21.
Nc5 {[%clk 0:02:13.3]} 21... Bxg2 {[%clk 0:01:51.3]} 22. Kxg2 {[%clk 0:02:09.4]}
22... Rxd1 {[%clk 0:01:45.6]} 23. Rxd1 {[%clk 0:02:08.6]} 23... Re7 {[%clk
0:01:46.1]} 24. Rd8+ {[%clk 0:02:06]} 24... Kg7 {[%clk 0:01:45.8]} 25. Rb8
{[%clk 0:02:05.2]} 25... Nd5 {[%clk 0:01:38.5]} 26. Rxb7 {[%clk 0:02:00.3]}
26... Rxb7 {[%clk 0:01:27.4]} 27. Nxb7 {[%clk 0:02:01.2]} 27... Nb4 {[%clk
0:01:09.3]} 28. a3 {[%clk 0:02:00.1]} 28... Nc2 {[%clk 0:01:05.8]} 29. a4 {[%clk
0:01:57.7]} 29... Kf6 {[%clk 0:00:56.8]} 30. Na5 {[%clk 0:01:49.5]} 30... Nb4
{[%clk 0:00:56]} 31. f4 {[%clk 0:01:40.2]} 31... Ke6 {[%clk 0:00:55.6]} 32. e4
{[%clk 0:01:38.1]} 32... Kd6 {[%clk 0:00:54.2]} 33. Kf3 {[%clk 0:01:36.3]} 33...
Nc2 {[%clk 0:00:39.2]} 34. Ke2 {[%clk 0:01:30.4]} 34... Kc5 {[%clk 0:00:37.6]}
35. Kd3 {[%clk 0:01:26.1]} 35... Ne1+ {[%clk 0:00:28.6]} 36. Kc3 {[%clk
0:01:23.4]} 36... Ng2 {[%clk 0:00:26.6]} 37. b4+ {[%clk 0:01:19.8]} 37... Kd6
{[%clk 0:00:25.1]} 38. Nc4+ {[%clk 0:01:16]} 38... Kc7 {[%clk 0:00:25.2]} 39. f5
{[%clk 0:01:12.1]} 39... Nf4 {[%clk 0:00:23]} 40. h4 {[%clk 0:01:05.1]} 40...
Ng2 {[%clk 0:00:21.7]} 41. Ne5 {[%clk 0:01:00.5]} 41... Nxh4 {[%clk 0:00:15.7]}
42. Nxf7 {[%clk 0:01:00.4]} 42... gxf5 {[%clk 0:00:15.4]} 43. gxf5 {[%clk
0:00:57.7]} 43... h5 {[%clk 0:00:13.7]} 44. Kd4 {[%clk 0:00:56.5]} 44... Kd7
{[%clk 0:00:11.1]} 45. Ke5 {[%clk 0:00:52.1]} 45... Nf3+ {[%clk 0:00:09.2]} 46.
Kf4 {[%clk 0:00:51.6]} 46... Nd4 {[%clk 0:00:09.7]} 47. e5 {[%clk 0:00:50]}
47... Ke7 {[%clk 0:00:09.6]} 48. Ng5 {[%clk 0:00:48.9]} 48... Nc2 {[%clk
0:00:08]} 49. f6+ {[%clk 0:00:48.7]} 49... Ke8 {[%clk 0:00:08.4]} 50. e6 {[%clk
0:00:48.3]} 1-0

[Event "*** Titled Tuesday Blitz"]
[Site "Chess.com"]
[Date "2020.04.14"]
[Round "6"]
[White "dragos420"]
[Black "swayamsm"]
[Result "0-1"]
[WhiteElo "2506"]
[BlackElo "2672"]
[TimeControl "180+1"]
[EndTime "11:03:36 PDT"]
[Termination "swayamsm won on time"]

1. e4 {[%clk 0:02:27.3]} 1... e6 {[%clk 0:02:59.8]} 2. d4 {[%clk 0:02:27]} 2...
d5 {[%clk 0:03:00.7]} 3. Nd2 {[%clk 0:02:24.6]} 3... Be7 {[%clk 0:03:00.2]} 4.
Bd3 {[%clk 0:02:21.4]} 4... c5 {[%clk 0:02:58.6]} 5. Ngf3 {[%clk 0:02:07.4]}
5... Nf6 {[%clk 0:02:57.7]} 6. exd5 {[%clk 0:02:04.3]} 6... Qxd5 {[%clk
0:02:52.6]} 7. dxc5 {[%clk 0:02:04.2]} 7... Nbd7 {[%clk 0:02:50.9]} 8. O-O
{[%clk 0:01:57.5]} 8... Nxc5 {[%clk 0:02:47.8]} 9. Bc4 {[%clk 0:01:55.5]} 9...
Qh5 {[%clk 0:02:44.3]} 10. Nb3 {[%clk 0:01:45.5]} 10... O-O {[%clk 0:02:38.3]}
11. Be3 {[%clk 0:01:37.2]} 11... b6 {[%clk 0:02:35.1]} 12. Nfd4 {[%clk
0:01:27.8]} 12... Qg6 {[%clk 0:02:28.9]} 13. Nxc5 {[%clk 0:01:24.1]} 13... bxc5
{[%clk 0:02:28.5]} 14. Bd3 {[%clk 0:01:19.7]} 14... Qg4 {[%clk 0:02:19.3]} 15.
Be2 {[%clk 0:01:03.2]} 15... Qh4 {[%clk 0:02:13.2]} 16. g3 {[%clk 0:01:01.5]}
16... Qh3 {[%clk 0:02:09.7]} 17. Nc6 {[%clk 0:00:52.7]} 17... Re8 {[%clk
0:01:52.2]} 18. Nxe7+ {[%clk 0:00:45.4]} 18... Rxe7 {[%clk 0:01:53.1]} 19. Bxc5
{[%clk 0:00:37.2]} 19... Bb7 {[%clk 0:01:52.5]} 20. Bf3 {[%clk 0:00:34.9]} 20...
Ng4 {[%clk 0:01:50.8]} 21. Re1 {[%clk 0:00:25.9]} 21... Qxh2+ {[%clk 0:01:44.1]}
22. Kf1 {[%clk 0:00:25.7]} 22... Qh3+ {[%clk 0:01:43.6]} 23. Kg1 {[%clk
0:00:24.9]} 23... Rd7 {[%clk 0:01:27.7]} 24. Bxb7 {[%clk 0:00:19.6]} 24... Rxd1
{[%clk 0:01:23.5]} 25. Raxd1 {[%clk 0:00:20.5]} 25... Re8 {[%clk 0:01:22.4]} 26.
Bg2 {[%clk 0:00:19.9]} 26... Qh2+ {[%clk 0:01:20.1]} 27. Kf1 {[%clk 0:00:20.3]}
27... Qh5 {[%clk 0:01:20.7]} 28. Bxa7 {[%clk 0:00:19.2]} 28... h6 {[%clk
0:01:17.1]} 29. Bd4 {[%clk 0:00:15.2]} 29... Rc8 {[%clk 0:01:13.2]} 30. Rd2
{[%clk 0:00:09.5]} 30... e5 {[%clk 0:01:02.5]} 31. Be3 {[%clk 0:00:04]} 31...
Nh2+ {[%clk 0:00:53.6]} 32. Kg1 {[%clk 0:00:04]} 32... Nf3+ {[%clk 0:00:54.2]}
33. Bxf3 {[%clk 0:00:04.6]} 33... Qxf3 {[%clk 0:00:55.1]} 34. a3 {[%clk
0:00:04.2]} 34... Rc4 {[%clk 0:00:45.7]} 35. b3 {[%clk 0:00:03.5]} 35... Rg4
{[%clk 0:00:43.8]} 36. Rd3 {[%clk 0:00:01.8]} 36... e4 {[%clk 0:00:37.3]} 37.
Rd2 {[%clk 0:00:01.1]} 37... h5 {[%clk 0:00:37.1]} 38. Red1 {[%clk 0:00:01.6]}
38... h4 {[%clk 0:00:36.7]} 39. Rd8+ {[%clk 0:00:01]} 39... Kh7 {[%clk
0:00:36.9]} 40. R8d5 {[%clk 0:00:01.9]} 40... hxg3 {[%clk 0:00:34.6]} 0-1

[Event "*** Titled Tuesday Blitz"]
[Site "Chess.com"]
[Date "2020.04.14"]
[Round "6"]
[White "afgano29"]
[Black "Arencibia"]
[Result "1-0"]
[WhiteElo "2697"]
[BlackElo "2480"]
[TimeControl "180+1"]
[EndTime "11:03:36 PDT"]
[Termination "afgano29 won by resignation"]

1. d4 {[%clk 0:03:00.9]} 1... Nf6 {[%clk 0:02:59.5]} 2. c4 {[%clk 0:03:01.3]}
2... e6 {[%clk 0:02:59.4]} 3. Nf3 {[%clk 0:03:01]} 3... c5 {[%clk 0:02:58.5]} 4.
d5 {[%clk 0:03:00.7]} 4... d6 {[%clk 0:02:59]} 5. Nc3 {[%clk 0:03:00.7]} 5...
exd5 {[%clk 0:02:59]} 6. cxd5 {[%clk 0:03:01.6]} 6... g6 {[%clk 0:02:59.6]} 7.
e4 {[%clk 0:03:02]} 7... Bg7 {[%clk 0:03:00.1]} 8. h3 {[%clk 0:03:02.6]} 8...
O-O {[%clk 0:02:59.6]} 9. Bd3 {[%clk 0:03:03.1]} 9... a6 {[%clk 0:02:59.4]} 10.
a4 {[%clk 0:03:02.6]} 10... Nbd7 {[%clk 0:02:59.4]} 11. O-O {[%clk 0:03:02.6]}
11... Nh5 {[%clk 0:02:54.5]} 12. Bg5 {[%clk 0:03:00.8]} 12... Bf6 {[%clk
0:02:54]} 13. Bh6 {[%clk 0:03:01.2]} 13... Re8 {[%clk 0:02:54.1]} 14. Re1 {[%clk
0:02:57.7]} 14... Rb8 {[%clk 0:02:53.4]} 15. Qd2 {[%clk 0:02:51.9]} 15... Ne5
{[%clk 0:02:50.6]} 16. Be2 {[%clk 0:02:50.6]} 16... Bd7 {[%clk 0:02:42]} 17.
Nxe5 {[%clk 0:02:43.2]} 17... Bxe5 {[%clk 0:02:38.1]} 18. Bxh5 {[%clk
0:02:41.8]} 18... gxh5 {[%clk 0:02:39]} 19. Bg5 {[%clk 0:02:25.6]} 19... f6
{[%clk 0:02:35.7]} 20. Bh4 {[%clk 0:02:24.1]} 20... Kh8 {[%clk 0:02:32.8]} 21.
f4 {[%clk 0:02:20.8]} 21... Bd4+ {[%clk 0:02:30.3]} 22. Kh2 {[%clk 0:02:19.9]}
22... Qa5 {[%clk 0:02:09.4]} 23. Qc2 {[%clk 0:02:05.2]} 23... Kg7 {[%clk
0:02:05]} 24. Ne2 {[%clk 0:01:59.3]} 24... Qb4 {[%clk 0:02:02.2]} 25. Nxd4
{[%clk 0:01:57]} 25... cxd4 {[%clk 0:01:58.8]} 26. Qf2 {[%clk 0:01:50.2]} 26...
d3 {[%clk 0:01:33.3]} 27. e5 {[%clk 0:01:33.5]} 27... d2 {[%clk 0:01:17.3]} 28.
Bxf6+ {[%clk 0:01:29.7]} 28... Kf7 {[%clk 0:01:16.2]} 29. Re2 {[%clk 0:01:23.3]}
29... Rg8 {[%clk 0:01:07.4]} 30. Rxd2 {[%clk 0:01:19]} 30... Bf5 {[%clk
0:01:07.4]} 31. Re1 {[%clk 0:01:16.2]} 31... Rg6 {[%clk 0:01:02.6]} 32. Rd4
{[%clk 0:01:09.2]} 32... Qc5 {[%clk 0:00:53.4]} 33. Bg5 {[%clk 0:01:06.5]} 33...
h6 {[%clk 0:00:52.3]} 34. b4 {[%clk 0:00:55.4]} 34... Qc3 {[%clk 0:00:47.8]} 35.
exd6 {[%clk 0:00:47.5]} 35... hxg5 {[%clk 0:00:45.6]} 36. fxg5 {[%clk
0:00:47.7]} 36... Rxg5 {[%clk 0:00:45.1]} 37. Rf4 {[%clk 0:00:40.9]} 37... Kg6
{[%clk 0:00:40.1]} 38. h4 {[%clk 0:00:38.4]} 38... Rg4 {[%clk 0:00:37.7]} 39.
Rxf5 {[%clk 0:00:36.9]} 39... Qxb4 {[%clk 0:00:25.9]} 40. Re6+ {[%clk 0:00:36]}
40... Kg7 {[%clk 0:00:22.9]} 41. g3 {[%clk 0:00:27.8]} 41... Rg8 {[%clk
0:00:20.7]} 42. Rxh5 {[%clk 0:00:25.4]} 1-0